Cogmind - Beta 14 @@@ ROGUE MODE // 2024.10.18 @ 22:08:08 Player: saltine Result: Destroyed 0b10! Performance ------------- Evolutions (9) 4500 Regions Visited (31) 6200 Robots Destroyed (141) 705 Value Destroyed (4219) 4219 Prototype IDs (96) 1920 Alien Tech Used (9) 1800 Bonus (23034) 23034 TOTAL SCORE: 42378 Bonus ------- Triggered Max Security 2000 High Alert Combat Kills 31 Follower Combat Kills 1474 Network Hubs Disabled 200 Aligned with FarCom 300 Met Data Miner 300 Met Imprinter 300 Met Warlord at Base 500 MAIN.C Attacked Warlord 500 Built Enhanced Grunts 300 A7 Reached Mainframe 300 Met R17 at Cetus 500 Used Core Reset Matrix 3000 Met R17 at Research 2000 Met Warlord at Research 2000 Met Sigix 2000 Escaped with Sigix 5000 Win 3000 Friendly Fire -671 Cogmind --------- Core Integrity 1705/1850 Matter 82/300 Energy 280/280 System Corruption 0% Temperature Cool (20) Movement Flying (98) Ox1 Location Tau Ceti IV Orbit Parts ------- > --- POWER (2) -------- Light Quantum Reactor Light Quantum Reactor > --- PROPULSION (7) --- Cooled Cesium-ion Thruster Cooled Nuclear Pulse Thruster Diametric Drive Electron Diverter Impulse Thruster Array > --- UTILITY (12) ----- Advanced Power Amplifier Large Storage Unit Quantum Shading Machine Centrium Medium Armor Plating Improved Hacking Suite Improved Hacking Suite Advanced Hacking Suite Experimental Hacking Suite Improved System Shield Ghost Barrier Spacefold Activator > --- WEAPON (4) ------- XL Autogun Array > --- INVENTORY (15) --- Light Quantum Reactor Electron Diverter Advanced Transmission Jammer Improved Focal Shield Antimissile System Antimissile System High-powered Transdimensional Reconstructor Core Cannon Sigix Containment Pod Peak State ------------ > --- POWER ------------ Light Quantum Reactor Light Quantum Reactor > --- PROPULSION ------- Cooled Cesium-ion Thruster Cooled Nuclear Pulse Thruster Electron Diverter Electron Diverter Electron Diverter Impulse Thruster Array > --- UTILITY ---------- Advanced Power Amplifier Advanced Heat Sink Large Storage Unit Quantum Shading Machine Centrium Medium Armor Plating Improved Hacking Suite Improved Hacking Suite Advanced Hacking Suite Experimental Hacking Suite Improved System Shield Ghost Barrier Spacefold Activator > --- WEAPON ----------- Sigix Broadsword > --- INVENTORY -------- Light Quantum Reactor Diametric Drive Advanced Transmission Jammer Improved Focal Shield Antimissile System Antimissile System High-powered Transdimensional Reconstructor Core Cannon XL Autogun Array Sigix Containment Pod [Rating: 199] Favorites ----------- Power Light Antimatter Reactor Engine Ion Engine Power Core Light Fission Core Reactor Light Antimatter Reactor Propulsion Cooled Cesium-ion Thruster Treads Light Treads Leg Aluminum Leg Flight Unit Cooled Cesium-ion Thruster Utility Improved Hacking Suite Device Advanced Transmission Jammer Storage Medium Storage Unit Processor Transport Network Coupler Hackware Improved Hacking Suite Protection Light Armor Plating Artifact Spacefold Activator Weapon Assault Rifle Energy Gun Backup Laser III Energy Cannon Ion Cannon Ballistic Gun Assault Rifle Ballistic Cannon Light Cannon Launcher Guided Missile Launcher Impact Weapon Flail Slashing Weapon Power Sword Piercing Weapon Plasma Lance Build | -11 -10 -10 -10 -9 -8 -7 -7 -7 -7 -6 -6 -6 -6 -6 -5 -5 -5 -5 -5 -4 -4 -4 -4 -4 -4 -3 -2 -2 -2 -1 -1 ------- Run | Yrd Mat Min Exi Min Mat Fac Low Low Zio Pro Fac Low Low Dat Pro Fac Upp Upp War Pro Fac Ext Cet Arc Hub Res Res Qua Sec Acc Com Slots Evolved 18 | . . . . . 4 2 . . . . 2 . . . . 2 . . . . 2 . . . . 2 2 . . 2 . Power 1 | . . . . . . . . . . . . . . . . . . . . . . . . . . 1 . . . . . Propulsion 5 | . . . . . 1 2 . . . . . . . . . 1 . . . . 1 . . . . . . . . . . Utility 10 | . . . . . 3 . . . . . 2 . . . . 1 . . . . 1 . . . . 1 2 . . . . Weapon 2 | . . . . . . . . . . . . . . . . . . . . . . . . . . . . . . 2 . Parts Attached 240 | 1 16 . 3 2 20 23 3 1 2 2 13 14 . . . 2 4 2 10 3 10 17 9 7 4 29 8 8 6 8 13 Power 25 | . 3 . . . 1 2 . . . 1 1 . . . . . . 1 2 1 . 1 . . 1 6 2 1 1 1 . Engine 6 | . 2 . . . 1 2 . . . 1 . . . . . . . . . . . . . . . . . . . . . Core 6 | . 1 . . . . . . . . . 1 . . . . . . 1 1 . . . . . . 2 . . . . . Reactor 13 | . . . . . . . . . . . . . . . . . . . 1 1 . 1 . . 1 4 2 1 1 1 . Propulsion 41 | . 4 . . . 6 6 1 . . . 4 . . . . 1 . . 2 . 3 3 . . 1 4 . . 1 . 5 Treads 8 | . 2 . . . 6 . . . . . . . . . . . . . . . . . . . . . . . . . . Leg 2 | . 2 . . . . . . . . . . . . . . . . . . . . . . . . . . . . . . Wheel . | . . . . . . . . . . . . . . . . . . . . . . . . . . . . . . . . Hover . | . . . . . . . . . . . . . . . . . . . . . . . . . . . . . . . . Flight 31 | . . . . . . 6 1 . . . 4 . . . . 1 . . 2 . 3 3 . . 1 4 . . 1 . 5 Utility 111 | 1 5 . 3 2 7 9 1 . . 1 7 2 . . . 1 . 1 5 . 7 8 3 5 2 18 4 2 3 7 7 Device 48 | 1 1 . 1 1 2 . 1 . . . 1 2 . . . . . . 4 . 5 5 . 2 1 8 2 1 . 6 4 Storage 6 | . 2 . 1 . . 1 . . . . . . . . . . . . . . . . . . . . 1 . . 1 . Processor 7 | . . . . . 1 2 . . . . . . . . . . . . . . . . . . . 4 . . . . . Hackware 18 | . . . . . 1 3 . . . . 4 . . . . 1 . . 1 . 1 1 . 1 1 1 1 . . . 2 Protection 28 | . 2 . 1 1 3 3 . . . 1 2 . . . . . . 1 . . 1 2 3 2 . 5 . 1 . . . Artifact 4 | . . . . . . . . . . . . . . . . . . . . . . . . . . . . . 3 . 1 Weapon 63 | . 4 . . . 6 6 1 1 2 . 1 12 . . . . 4 . 1 2 . 5 6 2 . 1 2 5 1 . 1 Energy Gun 4 | . 1 . . . . 1 . . . . . . . . . . . . . . . 1 1 . . . . . . . . Energy Cannon 5 | . . . . . 1 . . . . . . . . . . . . . . . . 1 . . . . . 3 . . . Ballistic Gun 8 | . 2 . . . 3 . . . . . . . . . . . . . . . . . 1 1 . . . . . . 1 Ballistic Cannon 3 | . 1 . . . . . . . . . . . . . . . . . . . . . 2 . . . . . . . . Launcher 15 | . . . . . 2 . 1 . 1 . . 6 . . . . 2 . . 1 . . . . . 1 1 . . . . Special Weapon . | . . . . . . . . . . . . . . . . . . . . . . . . . . . . . . . . Impact Weapon 1 | . . . . . . 1 . . . . . . . . . . . . . . . . . . . . . . . . . Slashing Weapon 17 | . . . . . . 4 . 1 1 . 1 6 . . . . 2 . . . . 1 . . . . . . 1 . . Piercing Weapon 10 | . . . . . . . . . . . . . . . . . . . 1 1 . 2 2 1 . . 1 2 . . . Special Melee Weapon . | . . . . . . . . . . . . . . . . . . . . . . . . . . . . . . . . Unidentified Prototypes 19 | . . . . 1 1 1 . . 1 . 2 . . . . . . . 5 . . . 3 . . 1 . 3 . . 1 Parts Lost 22 | . 3 . . . 7 . . . . . 1 . . . . . 1 1 . . . 4 . . . 1 . . 1 1 2 Power 3 | . 2 . . . . . . . . . . . . . . . . 1 . . . . . . . . . . . . . Propulsion 8 | . . . . . 3 . . . . . 1 . . . . . . . . . . 2 . . . . . . 1 . 1 Utility 8 | . . . . . 2 . . . . . . . . . . . 1 . . . . 2 . . . 1 . . . 1 1 Weapon 3 | . 1 . . . 2 . . . . . . . . . . . . . . . . . . . . . . . . . . Highest Loss Streak 4 | . 2 . . . 4 . . . . . 1 . . . . . 1 1 . . . 3 . . . 1 . . 1 1 2 To Critical Strikes . | . . . . . . . . . . . . . . . . . . . . . . . . . . . . . . . . Average Slot Usage (%) 89 | . 94 100 100 100 83 92 92 92 92 92 92 93 93 93 93 87 87 82 91 91 87 86 84 83 84 83 91 89 82 76 78 Engine 4 | . 7 14 14 14 9 7 7 7 7 7 2 . . . . . . . . . . . . . . . . . . . . Core 1 | . 4 . . . . . . . . . 3 6 6 6 6 5 5 5 4 . . . . . . 1 . . . . . Reactor 1 | . . . . . . . . . . . . . . . . . . . . 4 5 5 5 5 5 5 8 8 8 8 8 Treads 8 | . 14 28 28 28 26 . . . . . . . . . . . . . . . . . . . . . . . . . . Leg 1 | . 14 . . . . . . . . . . . . . . . . . . . . . . . . . . . . . . Flight 18 | . . . . . . 37 38 38 38 38 33 33 33 33 33 29 29 29 29 29 30 29 26 26 26 24 26 26 26 24 23 Device 8 | . . . . . 10 5 7 7 7 7 6 11 13 13 13 11 11 11 11 11 13 10 13 10 10 16 20 21 17 16 15 Storage 7 | . 14 14 14 14 9 7 7 7 7 7 6 6 6 6 6 5 5 5 5 5 5 5 5 5 5 4 4 4 4 4 4 Hackware 12 | . . . . . . 15 15 15 15 15 25 21 20 20 20 22 22 17 20 23 21 22 21 21 25 19 21 21 17 16 19 Protection 7 | . 9 14 13 14 5 6 7 7 7 7 6 6 6 6 6 5 5 5 7 5 5 5 5 9 5 4 4 3 4 4 4 Ballistic Gun 7 | . 20 28 28 28 11 . . . . . . . . . . . . . . . . . 1 . . . . . . . . Slashing Weapon 1 | . . . . . . 5 7 7 7 7 6 5 6 6 6 5 3 5 5 . . 1 . . . . . . 3 4 4 Piercing Weapon 1 | . . . . . . . . . . . . . . . . . . . . 4 5 4 2 4 5 4 4 2 . . . Peak Build Rating 199 | 7 10 8 19 19 30 38 34 35 42 37 67 72 67 67 67 81 85 80 99 99 111 118 127 128 128 160 177 188 191 192 199 Average Rating 68 | 6 8 8 9 12 21 34 32 34 35 36 54 67 67 67 67 77 82 76 89 97 107 109 120 127 125 136 166 170 178 178 187 On Entrance 77 | 6 7 8 8 12 13 30 34 34 35 35 37 65 67 67 67 67 81 77 80 99 96 107 114 126 128 125 160 169 162 178 177 Naked Turns . | . . . . . . . . . . . . . . . . . . . . . . . . . . . . . . . . Heaviest Build 101 | 11 33 32 92 92 101 23 25 22 22 22 24 38 28 28 28 28 35 35 36 36 38 39 50 46 43 62 67 71 73 72 72 Greatest Support 72 | 20 40 40 40 40 60 23 24 24 24 24 28 28 28 28 28 36 47 38 38 37 58 58 48 48 57 72 72 72 72 72 72 Greatest Overweight (x) 2 | . 1 . 2 2 2 . 1 . . . . 1 . . . . . . . . . . 1 . . . . . 1 . 1 Average Overweight (x) . | . . . . 2 1 . . . . . . . . . . . . . . . . . . . . . . . . . . Largest Inventory Capacity 25 | 8 15 15 25 25 25 25 10 10 10 10 10 10 10 10 10 10 10 10 10 10 10 10 10 10 10 10 15 15 15 15 15 Average Capacity 14 | 8 12 15 19 25 25 10 10 10 10 10 10 10 10 10 10 10 10 10 10 10 10 10 10 10 10 10 13 15 15 15 15 Most Carried 25 | 6 15 15 18 22 25 24 10 10 10 10 10 10 10 10 10 10 10 10 10 10 10 10 10 10 10 10 15 15 15 15 15 Average Carried 13 | 6 11 14 15 19 24 10 9 9 9 10 9 9 10 10 10 9 9 9 9 9 9 9 9 9 10 9 13 14 14 15 14 Final Capacity 25 | 8 15 15 25 25 25 10 10 10 10 10 10 10 10 10 10 10 10 10 10 10 10 10 10 10 10 10 15 15 15 15 15 Final Carried 25 | 6 15 15 18 22 25 10 9 10 10 10 10 10 10 10 10 10 10 9 10 10 10 10 10 10 10 10 14 15 15 15 11 Class Distribution -------------------- 44% | Hacker-Sprinter 29% | Mutant 17% | Wizard-Sprinter 7% | Scavenger-Mutant Dominant Class ---------------- Mutant | -10/Materials Mutant | -10/Mines Mutant | -10/Exiles Mutant | -9/Mines Scavenger-Mutant | -8/Materials Hacker-Sprinter | -7/Factory Hacker-Sprinter | -7/Lower Caves Hacker-Sprinter | -7/Lower Caves Hacker-Sprinter | -7/Zion Hacker-Sprinter | -6/Proximity Caves Hacker-Sprinter | -6/Factory Hacker-Sprinter | -6/Lower Caves Hacker-Sprinter | -6/Lower Caves Hacker-Sprinter | -6/Data Miner Hacker-Sprinter | -5/Proximity Caves Hacker-Sprinter | -5/Factory Hacker-Sprinter | -5/Upper Caves Hacker-Sprinter | -5/Upper Caves Hacker-Sprinter | -5/Warlord Hacker-Sprinter | -4/Proximity Caves Hacker-Sprinter | -4/Factory Wizard-Sprinter | -4/Extension Hacker-Sprinter | -4/Cetus Hacker-Sprinter | -4/Archives Wizard-Sprinter | -4/Hub_04(d) Wizard-Sprinter | -3/Research Wizard-Sprinter | -2/Research Wizard-Sprinter | -2/Quarantine Wizard-Sprinter | -2/Section 7 Wizard-Sprinter | -1/Access Wizard-Sprinter | -1/Command Resources | -11 -10 -10 -10 -9 -8 -7 -7 -7 -7 -6 -6 -6 -6 -6 -5 -5 -5 -5 -5 -4 -4 -4 -4 -4 -4 -3 -2 -2 -2 -1 -1 ----------- Run | Yrd Mat Min Exi Min Mat Fac Low Low Zio Pro Fac Low Low Dat Pro Fac Upp Upp War Pro Fac Ext Cet Arc Hub Res Res Qua Sec Acc Com Matter Collected 4184 | 226 527 75 4 68 584 247 27 20 20 20 35 365 . . . . 292 147 121 75 25 215 304 148 30 325 60 38 . 110 76 Remotely . | . . . . . . . . . . . . . . . . . . . . . . . . . . . . . . . . Salvage Created 5773 | 83 602 40 . 33 1313 294 . . . . . 129 . . . . 396 . . 63 25 533 255 319 97 1033 218 . . 110 230 Parts 296 | 5 34 5 . 4 92 13 . . . . . 7 . . . . 12 . . 8 . 23 7 30 5 32 7 . . 3 9 Haulers Intercepted 20 | . 2 . . . 4 3 . . . . . . . . . . . . . . . . . . . 8 2 . . 1 . Recyclers Shooed 1 | . . . . . . . . . . . . . . . . . . . . . . . . . . 1 . . . . . Parts Field Recycled . | . . . . . . . . . . . . . . . . . . . . . . . . . . . . . . . . Retrieved Matter . | . . . . . . . . . . . . . . . . . . . . . . . . . . . . . . . . Parts Self-Destructed 27 | . . . . . . . 1 . . 2 . 6 . . . . 10 . . 8 . . . . . . . . . . . Prevented 1 | . . . . . . . 1 . . . . . . . . . . . . . . . . . . . . . . . . Kills | -11 -10 -10 -10 -9 -8 -7 -7 -7 -7 -6 -6 -6 -6 -6 -5 -5 -5 -5 -5 -4 -4 -4 -4 -4 -4 -3 -2 -2 -2 -1 -1 ------- Run | Yrd Mat Min Exi Min Mat Fac Low Low Zio Pro Fac Low Low Dat Pro Fac Upp Upp War Pro Fac Ext Cet Arc Hub Res Res Qua Sec Acc Com Combat Hostiles Destroyed 82 | . 14 3 . 2 27 . . . . . . 5 . . . . 16 . . 6 . 7 2 . . . . . . . . Melee 8 | . . . . . . . . . . . . . . . . . . . . 1 . 7 . . . . . . . . . Guns 34 | . 13 3 . 2 15 . . . . . . . . . . . . . . . . . 1 . . . . . . . . Cannons 10 | . 1 . . . 8 . . . . . . . . . . . . . . . . . 1 . . . . . . . . AOE 30 | . . . . . 4 . . . . . . 5 . . . . 16 . . 5 . . . . . . . . . . . Classes Destroyed 16 | 2 3 . . . 6 . . . . . . . . . . . 3 . . 1 . . 1 . . . . . . . . Worker 1 | . . . . . 1 . . . . . . . . . . . . . . . . . . . . . . . . . . Builder 6 | . . . . . 1 . . . . . . . . . . . . . . . . 2 . . . 3 . . . . . Tunneler 2 | 1 . . . . . . . . . . . . . . . . . . . . 1 . . . . . . . . . . Hauler 20 | . 2 . . . 4 3 . . . . . . . . . . . . . . . . . . . 8 2 . . 1 . Recycler 6 | 1 . . . . 2 1 . . . . . . . . . . . . . . . . . . . 1 . . . . 1 Mechanic 1 | . . . . . 1 . . . . . . . . . . . . . . . . . . . . . . . . . . Operator 11 | . . . . . 1 . . . . . . . . . . . . . . . . . . 9 . . . . . . 1 Drone 1 | . . . . . . . . . . . . . . . . . . . . 1 . . . . . . . . . . . Watcher 10 | . . . . . 1 2 . . . . . . . . . . . . . . . 1 1 . 2 1 1 . . . 1 Swarmer 36 | . 3 3 . 2 13 . . . . . . 3 . . . . 5 . . 5 . 2 . . . . . . . . . Grunt 30 | . 11 . . . 7 . . . . . . 2 . . . . 6 . . . . 4 . . . . . . . . . Brawler 2 | . . . . . . . . . . . . . . . . . 2 . . . . . . . . . . . . . . Sentry 8 | . . . . . 7 . . . . . . . . . . . . . . . . 1 . . . . . . . . . Hunter 2 | . . . . . . . . . . . . . . . . . 2 . . . . . . . . . . . . . . Programmer 1 | . . . . . . . . . . . . . . . . . 1 . . . . . . . . . . . . . . Cetus Guard 2 | . . . . . . . . . . . . . . . . . . . . . . . 2 . . . . . . . . Savage 1 | . . . . . . . . . . . . . . . . . . . . . . . 1 . . . . . . . . Butcher 1 | . . . . . . . . . . . . . . . . . . . . . . . 1 . . . . . . . . Best Kill Streak 9 | 2 3 2 . 2 7 2 . . . . . 3 . . . . 5 . . 5 1 2 2 9 2 3 1 . . 1 2 Combat Bots Only 5 | . 3 2 . 2 4 . . . . . . 3 . . . . 5 . . 5 . 2 1 . . . . . . . . Max Kills in Single Turn 4 | 1 2 1 . 1 4 1 . . . . . 2 . . . . 2 . . 2 1 1 2 1 1 1 1 . . 1 1 Gunslinging 1 | . 1 . . . . . . . . . . . . . . . . . . . . . . . . . . . . . . Exploded 4 | . . . . . 4 . . . . . . 2 . . . . 2 . . 2 . . . . . . . . . . . Melee 1 | . . . . . . . . . . . . . . . . . . . . 1 . 1 . . . . . . . . . Uniques/NPCs Destroyed . | . . . . . . . . . . . . . . . . . . . . . . . . . . . . . . . . Combat | -11 -10 -10 -10 -9 -8 -7 -7 -7 -7 -6 -6 -6 -6 -6 -5 -5 -5 -5 -5 -4 -4 -4 -4 -4 -4 -3 -2 -2 -2 -1 -1 -------- Run | Yrd Mat Min Exi Min Mat Fac Low Low Zio Pro Fac Low Low Dat Pro Fac Upp Upp War Pro Fac Ext Cet Arc Hub Res Res Qua Sec Acc Com Hostile Shots Fired 609 | . 106 5 . 5 129 . . . . 15 . 19 . . 1 5 34 23 . . 10 27 22 4 6 10 . 36 64 10 78 Missed 258 | . 31 3 . 1 39 . . . . 9 . 11 . . . . 19 12 . . 9 9 9 3 4 7 . 17 34 4 37 Damage Taken 6713 | . 837 16 . 33 1224 . . . . 86 134 91 . . 18 . 249 241 28 19 18 649 453 51 39 141 114 424 745 82 1021 Core 1096 | . 155 . . . 105 . . . . 18 . 18 . . 18 . 84 76 22 . . 146 23 . . 21 38 106 121 . 145 Absorbed by Shields 163 | . . . . . . . . . . . . . . . . . . . . . . 137 26 . . . . . . . . Ignored by Resistances 6 | . . . . . . . . . . . . . . . . . . . . . . . . . . . . . 6 . . Regen/Repaired (Parts) 887 | . 73 . . . . . . . . . . . . . . . . . 81 . . . . . . 280 . . 246 110 97 Core Remaining (%) 84 | 100 . . . 38 80 . . . . 97 . . . . 95 . . . . 81 . . . . 85 98 . . 82 . 92 Volleys Fired 266 | 8 67 4 . 3 104 . . . . . . 9 . . . . 26 . . 3 . . 20 17 . 1 1 2 . . 1 Largest 2 | 2 2 2 . 2 2 . . . . . . 1 . . . . 1 . . 1 . . 2 1 . 1 1 1 . . 1 Hottest 300 | 40 70 40 . 40 80 . . . . . . 39 . . . . 39 . . 39 . . 92 35 . 49 20 300 . . 60 Shots Fired 453 | 16 133 8 . 6 203 . . . . . . 9 . . . . 26 . . 3 . . 27 17 . 1 1 2 . . 1 Gun 316 | 16 116 8 . 6 145 . . . . . . . . . . . . . . . . . 7 17 . . . . . . 1 Cannon 96 | . 17 . . . 57 . . . . . . . . . . . . . . . . . 20 . . . . 2 . . . Launcher 41 | . . . . . 1 . . . . . . 9 . . . . 26 . . 3 . . . . . 1 1 . . . . Special . | . . . . . . . . . . . . . . . . . . . . . . . . . . . . . . . . Kinetic 345 | 16 125 8 . 6 145 . . . . . . . . . . . . . . . . . 27 17 . . . . . . 1 Thermal 67 | . 8 . . . 57 . . . . . . . . . . . . . . . . . . . . . . 2 . . . Explosive 40 | . . . . . 1 . . . . . . 9 . . . . 26 . . 3 . . . . . 1 . . . . . Electromagnetic . | . . . . . . . . . . . . . . . . . . . . . . . . . . . . . . . . Entropic 1 | . . . . . . . . . . . . . . . . . . . . . . . . . . . 1 . . . . Robot Hit Streak 12 | 4 12 3 . 4 10 . . . . . . . . . . . 9 . . 10 . . 4 2 . . . . . . 3 Robot Miss Streak 9 | 2 6 1 . 1 7 . . . . . . . . . . . . . . . . . 9 3 . . . . . . 1 Penetration Max 2 | . . . . . . . . . . . . . . . . . . . . . . . 2 1 . . . . . . . Secondary Targets 2 | . 1 . . . 1 . . . . . . . . . . . . . . . . . . . . . . . . . . Max Gunslinging Chain 1 | . 1 . . . 1 . . . . . . . . . . . . . . . . . . . . . . . . . . Shots Hit Robots 346 | 10 81 5 . 3 118 10 . . . . 5 . . . 1 . 8 . . 2 1 18 13 21 2 33 7 . . 4 4 Core Hits 207 | 4 36 3 . 2 59 5 . . . . . 11 . . . . 36 . . 6 . 9 7 5 2 14 3 . . . 5 Critical Kills 4 | . 1 . . . . . . . . . . . . . . . . . . . . . 3 . . . . . . . . Critical Parts Destroyed 3 | . . . . . . . . . . . . . . . . . . . . . . . 3 . . . . . . . . Critical Strikes 20 | . 1 . . . . 2 . . . . . . . . . . . . . . . 2 9 3 2 1 . . . . . Destroy 10 | . 1 . . . . . . . . . . . . . . . . . . . . . 9 . . . . . . . . Sever 2 | . . . . . . 2 . . . . . . . . . . . . . . . . . . . . . . . . . Impale 8 | . . . . . . . . . . . . . . . . . . . . . . 2 . 3 2 1 . . . . . Melee Attacks 390 | . . . . . . 83 1 . 1 5 42 7 . . 3 6 7 1 2 4 22 46 1 14 19 54 38 5 9 7 13 Impact 25 | . . . . . . 25 . . . . . . . . . . . . . . . . . . . . . . . . . Slashing 166 | . . . . . . 58 1 . 1 5 42 7 . . 3 6 7 1 2 . . 4 . . . . . . 9 7 13 Piercing 199 | . . . . . . . . . . . . . . . . . . . . 4 22 42 1 14 19 54 38 5 . . . Sneak Attacks 39 | . . . . . . 4 . . . . 1 . . . 1 . . . . 1 1 4 . 10 1 12 2 . . 1 1 Combat Hostiles 3 | . . . . . . . . . . . . . . . . . . . . 1 . 2 . . . . . . . . . Follow-up Attacks . | . . . . . . . . . . . . . . . . . . . . . . . . . . . . . . . . Damage Inflicted 14849 | 81 905 60 . 53 2247 537 . . . . 295 691 . . 90 . 2006 . . 411 125 1097 557 1570 226 2563 419 . 7 446 463 Guns 2549 | 81 706 60 . 53 1176 . . . . . . . . . . . . . . . . . 184 211 . . . . . . 78 Cannons 1311 | . 167 . . . 838 . . . . . . . . . . . . . . . . . 306 . . . . . . . . Explosions 3202 | . . . . . 164 . . . . . . 691 . . . . 2006 . . 341 . . . . . . . . . . . Melee 7679 | . . . . . . 537 . . . . 295 . . . 90 . . . . 70 125 1097 67 1359 226 2563 419 . . 446 385 Ramming 108 | . 32 . . . 69 . . . . . . . . . . . . . . . . . . . . . . . 7 . . Kinetic 2957 | 81 808 60 . 53 1176 . . . . . . . . . . . . . . . . . 490 211 . . . . . . 78 Thermal 903 | . 65 . . . 838 . . . . . . . . . . . . . . . . . . . . . . . . . . Explosive 3202 | . . . . . 164 . . . . . . 691 . . . . 2006 . . 341 . . . . . . . . . . . Electromagnetic . | . . . . . . . . . . . . . . . . . . . . . . . . . . . . . . . . Impact 63 | . . . . . . 63 . . . . . . . . . . . . . . . . . . . . . . . . . Slashing 1690 | . . . . . . 474 . . . . 295 . . . 90 . . . . . . . . . . . . . . 446 385 Piercing 5926 | . . . . . . . . . . . . . . . . . . . . 70 125 1097 67 1359 226 2563 419 . . . . Highest Corruption 9 | . . . . . . 1 1 1 1 . . . . . . . 1 1 1 . . 9 9 9 4 . . 1 1 . . Average Corruption 4 | . . . . . . 1 1 1 1 . . . . . . . 1 1 1 . . 9 9 7 4 . . 1 1 . . Corruption Purged 9 | . . . . . . . . . . . . . . . . . . . . . . . . 9 . . . . . . . Corruption Blocked . | . . . . . . . . . . . . . . . . . . . . . . . . . . . . . . . . Effects 34 | . . . . . . 2 1 . 1 . . . . . . . 2 1 . . . 9 11 4 3 . . . . . . Message Errors 9 | . . . . . . 1 . . 1 . . . . . . . . . . . . 2 2 1 2 . . . . . . Matter Fused 6 | . . . . . . 1 1 . . . . . . . . . . . . . . 2 1 1 . . . . . . . Heat Flow Errors 8 | . . . . . . . . . . . . . . . . . . . . . . 2 4 1 1 . . . . . . Energy Discharges 2 | . . . . . . . . . . . . . . . . . 1 . . . . 1 . . . . . . . . . Data Loss (minor) 5 | . . . . . . . . . . . . . . . . . . . . . . 2 2 1 . . . . . . . Data Loss (major) 2 | . . . . . . . . . . . . . . . . . 1 1 . . . . . . . . . . . . . Misfires 1 | . . . . . . . . . . . . . . . . . . . . . . . 1 . . . . . . . . Alerts 1 | . . . . . . . . . . . . . . . . . . . . . . . 1 . . . . . . . . Overload Shots . | . . . . . . . . . . . . . . . . . . . . . . . . . . . . . . . . Overflow Damage 1997 | . . . . . 10 27 . . . . . 29 . . 50 . . . . 1 85 128 . 1052 . 456 32 . . 76 51 Projectiles 10 | . . . . . 10 . . . . . . . . . . . . . . . . . . . . . . . . . . Explosions 30 | . . . . . . . . . . . . 29 . . . . . . . 1 . . . . . . . . . . . Melee 1957 | . . . . . . 27 . . . . . . . . 50 . . . . . 85 128 . 1052 . 456 32 . . 76 51 Knockbacks 4 | . 2 . . . 1 1 . . . . . . . . . . . . . . . . . . . . . . . . . Impact 2 | . . . . . 1 1 . . . . . . . . . . . . . . . . . . . . . . . . . Kinetic 2 | . 2 . . . . . . . . . . . . . . . . . . . . . . . . . . . . . . Secondary . | . . . . . . . . . . . . . . . . . . . . . . . . . . . . . . . . Self-Inflicted Damage 207 | . . . . . . . . . . . . . . . . . 11 . . . . . . . . 79 114 . 3 . . Shots 3 | . . . . . . . . . . . . . . . . . 1 . . . . . . . . 1 1 . . . . Rammed 13 | . 5 . . . 7 . . . . . . . . . . . . . . . . . . . . . . . 1 . . Targets Rammed 18 | . 7 . . . 10 . . . . . . . . . . . . . . . . . . . . . . . 1 . . Kicked 2 | . 2 . . . . . . . . . . . . . . . . . . . . . . . . . . . . . . Crushed 3 | . . . . . 3 . . . . . . . . . . . . . . . . . . . . . . . . . . Highest Temperature 270 | . 249 . . . 24 10 . . . 19 5 . . . . . 144 100 2 6 109 223 270 101 103 5 6 162 3 . 20 Average Temperature 59 | . 90 . . . 7 7 . . . 10 5 . . . . . 62 52 1 1 31 53 89 10 42 5 6 70 3 . 20 Received Heat Transfer 1430 | . 480 . . . 612 . . . . 27 . 27 . . . . 27 39 . . . 40 85 . 12 . . 27 45 . 9 Siege Activations . | . . . . . . . . . . . . . . . . . . . . . . . . . . . . . . . . Robots Corrupted 1 | . . . . . . 1 . . . . . . . . . . . . . . . . . . . . . . . . . Combat Hostiles . | . . . . . . . . . . . . . . . . . . . . . . . . . . . . . . . . Parts Fried 2 | . . . . . . 2 . . . . . . . . . . . . . . . . . . . . . . . . . Impact Corruptions 1 | . . . . . . 1 . . . . . . . . . . . . . . . . . . . . . . . . . Robots Melted . | . . . . . . . . . . . . . . . . . . . . . . . . . . . . . . . . Combat Hostiles . | . . . . . . . . . . . . . . . . . . . . . . . . . . . . . . . . Parts Melted 2 | . . . . . 2 . . . . . . . . . . . . . . . . . . . . . . . . . . Heat Transferred 1517 | . 185 . . . 1332 . . . . . . . . . . . . . . . . . . . . . . . . . . Parts Sabotaged . | . . . . . . . . . . . . . . . . . . . . . . . . . . . . . . . . Parts Stolen . | . . . . . . . . . . . . . . . . . . . . . . . . . . . . . . . . Parts Stripped . | . . . . . . . . . . . . . . . . . . . . . . . . . . . . . . . . Power Chain Reactions . | . . . . . . . . . . . . . . . . . . . . . . . . . . . . . . . . Alert | -11 -10 -10 -10 -9 -8 -7 -7 -7 -7 -6 -6 -6 -6 -6 -5 -5 -5 -5 -5 -4 -4 -4 -4 -4 -4 -3 -2 -2 -2 -1 -1 ------- Run | Yrd Mat Min Exi Min Mat Fac Low Low Zio Pro Fac Low Low Dat Pro Fac Upp Upp War Pro Fac Ext Cet Arc Hub Res Res Qua Sec Acc Com Peak Influence 1908 | 10 226 117 . 74 334 268 . . . . 361 . . . . 176 . . . . 212 319 448 473 362 326 265 1908 1833 1110 640 Initial 1100 | . 6 17 . . . 116 . . . . 263 . . . . 159 . . . . 72 . 94 179 42 189 51 148 1100 1100 416 Average 218 | 4 108 66 . 34 148 139 . . . . 262 . . . . 164 . . . . 106 175 275 279 212 157 143 1739 1719 1061 486 Maximum Alert Level 5 | . 1 . . . 1 1 . . . . 1 . . . . . . . . . 1 1 2 2 1 1 1 5 5 4 2 Low Security (%) 62 | 100 94 100 . 100 65 83 . . . . 29 . . . . 100 . . . . 97 55 12 32 38 69 62 . . . . Level 1 28 | . 5 . . . 34 16 . . . . 70 . . . . . . . . . 2 44 67 40 61 30 37 . . . . Level 2 4 | . . . . . . . . . . . . . . . . . . . . . . . 19 26 . . . . . 8 100 Level 3 . | . . . . . . . . . . . . . . . . . . . . . . . . . . . . . . 2 . Level 4 . | . . . . . . . . . . . . . . . . . . . . . . . . . . . . . . 88 . Level 5 . | . . . . . . . . . . . . . . . . . . . . . . . . . . . . . . . . High Security . | . . . . . . . . . . . . . . . . . . . . . . . . . . . . . . . . Max Security 2 | . . . . . . . . . . . . . . . . . . . . . . . . . . . . 99 99 . . Squads Dispatched 53 | . 2 . . . 1 3 . . . 1 6 . . . . 1 . 1 . . 1 . . . 9 8 2 9 6 2 1 Investigation 26 | . 2 . . . . 2 . . . . 5 . . . . 1 . . . . 1 . . . 5 6 1 . . 2 1 Extermination 1 | . . . . . . 1 . . . . . . . . . . . . . . . . . . . . . . . . . Reinforcement 9 | . . . . . 1 . . . . . 1 . . . . . . . . . . . . . 4 2 1 . . . . Assault 14 | . . . . . . . . . . 1 . . . . . . . 1 . . . . . . . . . 6 6 . . Garrison 3 | . . . . . . . . . . . . . . . . . . . . . . . . . . . . 3 . . . Intercept . | . . . . . . . . . . . . . . . . . . . . . . . . . . . . . . . . Searches Triggered . | . . . . . . . . . . . . . . . . . . . . . . . . . . . . . . . . Data Miner Redirects 2 | . . . . . . . . . . . . . . . . . . . . . . . . . 1 . . . . 1 . Construction Impeded 1 | . . . . . . . . . . . . . . . . . . . . . . . . . 1 . . . . . . Haulers Reinforced 3 | . . . . . . . . . . . 1 . . . . . . . . . . . . . . 1 1 . . . . Active Scanning Responses . | . . . . . . . . . . . . . . . . . . . . . . . . . . . . . . . . Cargo Convoy Interrupts . | . . . . . . . . . . . . . . . . . . . . . . . . . . . . . . . . Stealth | -11 -10 -10 -10 -9 -8 -7 -7 -7 -7 -6 -6 -6 -6 -6 -5 -5 -5 -5 -5 -4 -4 -4 -4 -4 -4 -3 -2 -2 -2 -1 -1 --------- Run | Yrd Mat Min Exi Min Mat Fac Low Low Zio Pro Fac Low Low Dat Pro Fac Upp Upp War Pro Fac Ext Cet Arc Hub Res Res Qua Sec Acc Com Distress Signals 25 | . 1 . . . 4 1 . . . . 1 . . . . . . . . . 1 2 2 . 1 5 4 . 2 . 1 Communications Jammed 147 | . . . . . . . . . . . . . . . . . . . . . 8 15 80 . 7 33 4 . . . . Distress Signals 147 | . . . . . . . . . . . . . . . . . . . . . 8 15 80 . 7 33 4 . . . . Times Spotted 305 | . 26 5 . 3 47 9 . . . 18 5 12 . . 4 1 18 10 16 3 7 25 10 8 5 14 8 12 25 1 13 Peak Tracking Total 21 | . 5 2 . 2 4 3 . . . 11 5 5 . . 6 1 6 15 11 2 5 4 5 1 3 5 3 18 21 1 11 Tactical Retreats 32 | . . 1 . . 1 3 . . . 5 1 3 . . 1 . 1 3 . . 2 2 . . . 2 1 1 4 . 1 Traps | -11 -10 -10 -10 -9 -8 -7 -7 -7 -7 -6 -6 -6 -6 -6 -5 -5 -5 -5 -5 -4 -4 -4 -4 -4 -4 -3 -2 -2 -2 -1 -1 ------- Run | Yrd Mat Min Exi Min Mat Fac Low Low Zio Pro Fac Low Low Dat Pro Fac Upp Upp War Pro Fac Ext Cet Arc Hub Res Res Qua Sec Acc Com Traps Triggered 17 | . 1 . . . . 2 . . . . 3 . . . . . . . . . 1 7 . . 1 2 . . . . . Indirectly . | . . . . . . . . . . . . . . . . . . . . . . . . . . . . . . . . Trap Hack Attempts . | . . . . . . . . . . . . . . . . . . . . . . . . . . . . . . . . Triggered . | . . . . . . . . . . . . . . . . . . . . . . . . . . . . . . . . Disarmed 4 | . 4 . . . . . . . . . . . . . . . . . . . . . . . . . . . . . . Reprogrammed . | . . . . . . . . . . . . . . . . . . . . . . . . . . . . . . . . Reused . | . . . . . . . . . . . . . . . . . . . . . . . . . . . . . . . . Traps Extracted . | . . . . . . . . . . . . . . . . . . . . . . . . . . . . . . . . Installed . | . . . . . . . . . . . . . . . . . . . . . . . . . . . . . . . . Triggered 9 | . . . . . . . 1 . . . . 1 . . 1 . . . 6 . . . . . . . . . . . . Machines | -11 -10 -10 -10 -9 -8 -7 -7 -7 -7 -6 -6 -6 -6 -6 -5 -5 -5 -5 -5 -4 -4 -4 -4 -4 -4 -3 -2 -2 -2 -1 -1 ---------- Run | Yrd Mat Min Exi Min Mat Fac Low Low Zio Pro Fac Low Low Dat Pro Fac Upp Upp War Pro Fac Ext Cet Arc Hub Res Res Qua Sec Acc Com Machines Disabled 19 | . . . . . . . . . . . . . . . . . . . . . . . . 2 . . 3 7 5 . 2 Max in Single Turn 2 | . . . . . . . . . . . . . . . . . . . . . . . . 1 . . 2 2 1 . 1 Garrison Access 6 | . . . . . . . . . . . 2 . . . . 1 . . . . 1 . . . . 1 1 . . . . Network Hub 1 | . . . . . . . . . . . . . . . . . . . . . . . . . 1 . . . . . . Machines Repaired . | . . . . . . . . . . . . . . . . . . . . . . . . . . . . . . . . Machines Dismantled . | . . . . . . . . . . . . . . . . . . . . . . . . . . . . . . . . Machines Sabotaged 1 | . . . . . . . . . . . . . . . . . . . . . . . . . 1 . . . . . . Overloaded Fab Kills . | . . . . . . . . . . . . . . . . . . . . . . . . . . . . . . . . Hacking | -11 -10 -10 -10 -9 -8 -7 -7 -7 -7 -6 -6 -6 -6 -6 -5 -5 -5 -5 -5 -4 -4 -4 -4 -4 -4 -3 -2 -2 -2 -1 -1 --------- Run | Yrd Mat Min Exi Min Mat Fac Low Low Zio Pro Fac Low Low Dat Pro Fac Upp Upp War Pro Fac Ext Cet Arc Hub Res Res Qua Sec Acc Com Machines Accessed 111 | . 8 . 2 1 5 18 . . 1 . 20 . . 3 . 8 . 1 2 . 8 5 1 1 6 11 3 . . 3 4 Terminals 69 | . 6 . . . 5 11 . . . . 11 . . . . 5 . . . . 4 5 1 . 6 6 3 . . 3 3 Fabricators 8 | . . . . . . 1 . . . . 4 . . . . . . . . . 1 . . . . 2 . . . . . Repair Stations 3 | . 1 . . . . 1 . . . . . . . . . . . . . . . . . . . 1 . . . . . Recycling Units 11 | . 1 . . . . 3 . . . . 3 . . . . 1 . . . . 2 . . . . . . . . . 1 Scanalyzers 3 | . . . . . . 1 . . . . . . . . . 1 . . . . . . . . . 1 . . . . . Garrison Access 6 | . . . . . . 1 . . . . 2 . . . . 1 . . . . 1 . . . . 1 . . . . . Total Hacks 383 | . 27 . 2 1 14 45 . . 6 . 43 . . 21 . 20 . 1 2 . 19 33 2 25 13 59 18 . . 16 16 Successful 237 | . 17 . 2 1 8 18 . . 6 . 26 . . 21 . 14 . 1 2 . 13 23 1 25 6 31 12 . . 4 6 Failed 143 | . 9 . . . 5 27 . . . . 17 . . . . 6 . . . . 6 9 1 . 7 28 6 . . 12 10 Catastrophic 28 | . . . . . 3 7 . . . . 2 . . . . . . . . . 3 1 . . . 5 3 . . 2 2 Database Lockouts 3 | . 1 . . . 1 . . . . . . . . . . . . . . . . 1 . . . . . . . . . Manual 145 | . 7 . 1 . 7 13 . . . . 19 . . . . 8 . . 1 . 12 17 1 . 13 23 10 . . 7 6 Terminals 269 | . 24 . . . 14 35 . . . . 24 . . . . 16 . . . . 14 33 2 . 13 46 18 . . 16 14 Fabricators 20 | . . . . . . 2 . . . . 10 . . . . . . . . . 1 . . . . 7 . . . . . Repair Stations 6 | . 2 . . . . 1 . . . . . . . . . . . . . . . . . . . 3 . . . . . Recycling Units 18 | . 1 . . . . 3 . . . . 7 . . . . 2 . . . . 3 . . . . . . . . . 2 Scanalyzers 3 | . . . . . . 1 . . . . . . . . . 1 . . . . . . . . . 1 . . . . . Garrison Access 9 | . . . . . . 3 . . . . 2 . . . . 1 . . . . 1 . . . . 2 . . . . . Terminal Hacks 177 | . 12 . 2 1 8 9 . . 6 . 10 . . 21 . 10 . 1 2 . 7 20 1 25 2 20 10 . . 4 6 Record 28 | . . . 1 . . . . . . . . . . 2 . . . . . . . . . 25 . . . . . . . Part Schematic 24 | . . . . . 1 . . . 6 . 2 . . 10 . . . . . . 1 1 . . . 2 1 . . . . Robot Schematic 6 | . . . . . . . . . . . . . . 6 . . . . . . . . . . . . . . . . . Robot Analysis 6 | . 1 . . . 2 . . . . . 1 . . . . . . . . . 1 1 . . . . . . . . . Prototype ID Bank 20 | . 2 . . . 2 . . . . . 2 . . 3 . 1 . . . . . 3 . . . 4 2 . . . 1 Open Door 5 | . . . . 1 . . . . . . . . . . . . . 1 2 . . . 1 . . . . . . . . Open DSF 1 | . . . . . . . . . . . . . . . . 1 . . . . . . . . . . . . . . . Level Access Points 3 | . . . . . . . . . . . . . . . . . . . . . . . . . 1 1 1 . . . . Branch Access Points 8 | . . . . . . 1 . . . . 1 . . . . 1 . . . . 1 1 . . . 1 1 . . 1 . Emergency Access Points 5 | . 1 . . . . . . . . . . . . . . 1 . . . . 1 . . . . 1 . . . . 1 Machine Index 3 | . . . . . . . . . . . . . . . . . . . . . . 1 . . . 1 1 . . . . Terminal Index 4 | . . . . . . 1 . . . . . . . . . . . . . . 1 . . . 1 1 . . . . . Fabricator Index 2 | . . . . . . 2 . . . . . . . . . . . . . . . . . . . . . . . . . Repair Station Index 2 | . . . . . . . . . . . . . . . . . . . . . . . . . . . 1 . . . 1 Alert Level 3 | . . . . . 1 . . . . . . . . . . . . . . . . 1 . . . . . . . . 1 Unreport Threat 6 | . . . . . . . . . . . . . . . . . . . . . 1 1 . . . 1 . . . 3 . Locate Traps 10 | . 3 . . . . . . . . . . . . . . 2 . . . . . 2 . . . 1 . . . . 2 Disarm Traps 1 | . 1 . . . . . . . . . . . . . . . . . . . . . . . . . . . . . . Dispatch Records 2 | . . . . . . . . . . . . . . . . . . . . . . 2 . . . . . . . . . Maintenance Status 4 | . 1 . . . . . . . . . . . . . . 1 . . . . . 1 . . . . 1 . . . . Security Status 1 | . . . . . . . . . . . . . . . . . . . . . . 1 . . . . . . . . . Surveillance Status 1 | . . . . . . . . . . . . . . . . . . . . . . 1 . . . . . . . . . Patrol Status 4 | . . . . . . . . . . . 1 . . . . 1 . . . . . 1 . . . . 1 . . . . Transport Status 3 | . 1 . . . 1 . . . . . . . . . . . . . . . . . . . . 1 . . . . . Investigation Status 1 | . . . . . . . . . . . . . . . . . . . . . . . . . . 1 . . . . . Recall Investigation 2 | . . . . . . . . . . . 1 . . . . . . . . . . . . . . 1 . . . . . Hauler Manifests 6 | . 1 . . . 1 . . . . . 2 . . . . . . . . . . . . . . 1 1 . . . . Registered Components 4 | . . . . . . 1 . . . . . . . . . 1 . . . . . 1 . . . 1 . . . . . Registered Prototypes 3 | . . . . . . 1 . . . . . . . . . 1 . . . . . . . . . 1 . . . . . Zone Layout 8 | . 1 . . . . 3 . . . . . . . . . . . . . . 1 2 . . . 1 . . . . . Derelict Proto ID Bank 1 | . . . 1 . . . . . . . . . . . . . . . . . . . . . . . . . . . . Fabricator Hacks 13 | . . . . . . 2 . . . . 6 . . . . . . . . . 1 . . . . 4 . . . . . Network Status 1 | . . . . . . . . . . . 1 . . . . . . . . . . . . . . . . . . . . Load Schematic 6 | . . . . . . 1 . . . . 3 . . . . . . . . . . . . . . 2 . . . . . Build 6 | . . . . . . 1 . . . . 2 . . . . . . . . . 1 . . . . 2 . . . . . Repair Station Hacks 5 | . 2 . . . . 1 . . . . . . . . . . . . . . . . . . . 2 . . . . . Scan Component 2 | . 1 . . . . . . . . . . . . . . . . . . . . . . . . 1 . . . . . Repair 2 | . 1 . . . . . . . . . . . . . . . . . . . . . . . . 1 . . . . . Refit 1 | . . . . . . 1 . . . . . . . . . . . . . . . . . . . . . . . . . Recycling Unit Hacks 8 | . 1 . . . . 2 . . . . 2 . . . . 1 . . . . 2 . . . . . . . . . . Retrieve Components 8 | . 1 . . . . 2 . . . . 2 . . . . 1 . . . . 2 . . . . . . . . . . Scanalyzer 3 | . . . . . . 1 . . . . . . . . . 1 . . . . . . . . . 1 . . . . . Insert Component 3 | . . . . . . 1 . . . . . . . . . 1 . . . . . . . . . 1 . . . . . Garrison Access Hacks 5 | . . . . . . . . . . . 2 . . . . 1 . . . . 1 . . . . 1 . . . . . Seal Access 5 | . . . . . . . . . . . 2 . . . . 1 . . . . 1 . . . . 1 . . . . . Unauthorized Hacks 26 | . 2 . . . . 3 . . . . 6 . . . . 1 . . . . 2 3 . . 4 3 2 . . . . Terminals 18 | . 2 . . . . 3 . . . . 1 . . . . . . . . . 1 3 . . 4 2 2 . . . . Track 1 | . . . . . . . . . . . . . . . . . . . . . . 1 . . . . . . . . . Assimilate 5 | . . . . . . 1 . . . . 1 . . . . . . . . . . 1 . . . 2 . . . . . Botnet 3 | . 1 . . . . 1 . . . . . . . . . . . . . . . . . . . . 1 . . . . Disrupt 1 | . . . . . . . . . . . . . . . . . . . . . 1 . . . . . . . . . . Operators 4 | . 1 . . . . 1 . . . . . . . . . . . . . . . 1 . . . . 1 . . . . Sabotage 4 | . . . . . . . . . . . . . . . . . . . . . . . . . 4 . . . . . . Fabricators 3 | . . . . . . . . . . . 3 . . . . . . . . . . . . . . . . . . . . Prioritize 1 | . . . . . . . . . . . 1 . . . . . . . . . . . . . . . . . . . . Recompile 2 | . . . . . . . . . . . 2 . . . . . . . . . . . . . . . . . . . . Repair Stations 1 | . . . . . . . . . . . . . . . . . . . . . . . . . . 1 . . . . . Patch 1 | . . . . . . . . . . . . . . . . . . . . . . . . . . 1 . . . . . Recycling Units 4 | . . . . . . . . . . . 2 . . . . 1 . . . . 1 . . . . . . . . . . Recyclers 3 | . . . . . . . . . . . 1 . . . . 1 . . . . 1 . . . . . . . . . . Mask 1 | . . . . . . . . . . . 1 . . . . . . . . . . . . . . . . . . . . Scanalyzers . | . . . . . . . . . . . . . . . . . . . . . . . . . . . . . . . . Garrison Access . | . . . . . . . . . . . . . . . . . . . . . . . . . . . . . . . . Data Cores Recovered 1 | . . . . . . . . . . . . . . . . . . . . . . . . . . . . . . . 1 Used 1 | . . . . . . . . . . . . . . . . . . . . . . . . . . . . . . . 1 Hacking Detections 76 | . 7 . . . 4 15 . . . . 14 . . . . 5 . . . . 6 4 . . 2 9 3 . . 3 4 Full Trace Events 16 | . 1 . . . . 2 . . . . 3 . . . . 1 . . . . . . . . 1 4 1 . . 2 1 Feedback Events 1 | . . . . . . . . . . . . . . . . . . . . . . . . . . 1 . . . . . Hackware Fried 1 | . . . . . . . . . . . . . . . . . . . . . . . . . . 1 . . . . . Feedback Blocked . | . . . . . . . . . . . . . . . . . . . . . . . . . . . . . . . . Robot Schematics Acquired 9 | . . . . . . . . . 3 . . . . 6 . . . . . . . . . . . . . . . . . Robots Built . | . . . . . . . . . . . . . . . . . . . . . . . . . . . . . . . . Authchips . | . . . . . . . . . . . . . . . . . . . . . . . . . . . . . . . . Time . | . . . . . . . . . . . . . . . . . . . . . . . . . . . . . . . . Total Robot Build Rating . | . . . . . . . . . . . . . . . . . . . . . . . . . . . . . . . . Part Schematics Acquired 39 | . . . . . 1 . . . 21 . 2 . . 10 . . . . . . 1 1 . . . 2 1 . . . . Parts Built 6 | . . . . . . 1 . . . . 3 . . . . . . . . . . . . . . 2 . . . . . Authchips 1 | . . . . . . . . . . . 1 . . . . . . . . . . . . . . . . . . . . Time 367 | . . . . . . 36 . . . . 106 . . . . . . . . . 64 . . . . 161 . . . . . Total Part Build Rating 36 | . . . . . . 3 . . . . 18 . . . . . . . . . . . . . . 15 . . . . . Parts Repaired 2 | . 1 . . . . . . . . . . . . . . . . . . . . . . . . 1 . . . . . Time 121 | . 13 . . . . . . . . . . . . . . . . . . . . . . . . 108 . . . . . Parts Recycled . | . . . . . . . . . . . . . . . . . . . . . . . . . . . . . . . . Recycled Matter . | . . . . . . . . . . . . . . . . . . . . . . . . . . . . . . . . Retrieved Matter . | . . . . . . . . . . . . . . . . . . . . . . . . . . . . . . . . Retrieved Components 24 | . 10 . . . . 1 . . . . 6 . . . . 3 . . . . 4 . . . . . . . . . . Parts Scanalyzed . | . . . . . . . . . . . . . . . . . . . . . . . . . . . . . . . . Part Schematics Acquired . | . . . . . . . . . . . . . . . . . . . . . . . . . . . . . . . . Parts Damaged . | . . . . . . . . . . . . . . . . . . . . . . . . . . . . . . . . Bothacking | -11 -10 -10 -10 -9 -8 -7 -7 -7 -7 -6 -6 -6 -6 -6 -5 -5 -5 -5 -5 -4 -4 -4 -4 -4 -4 -3 -2 -2 -2 -1 -1 ------------ Run | Yrd Mat Min Exi Min Mat Fac Low Low Zio Pro Fac Low Low Dat Pro Fac Upp Upp War Pro Fac Ext Cet Arc Hub Res Res Qua Sec Acc Com Used RIF Installer . | . . . . . . . . . . . . . . . . . . . . . . . . . . . . . . . . Robots Hacked . | . . . . . . . . . . . . . . . . . . . . . . . . . . . . . . . . Non-combat . | . . . . . . . . . . . . . . . . . . . . . . . . . . . . . . . . Combat . | . . . . . . . . . . . . . . . . . . . . . . . . . . . . . . . . Robot Hacks Applied . | . . . . . . . . . . . . . . . . . . . . . . . . . . . . . . . . Relay Couplers Released 1 | . . . . . . . . . . . . . . . . . . . . . . . . . . . 1 . . . . Machine Destruction 1 | . . . . . . . . . . . . . . . . . . . . . . . . . . . 1 . . . . Fabnet Peak Effective % . | . . . . . . . . . . . . . . . . . . . . . . . . . . . . . . . . Robots Rewired 14 | . . . . . . . . . . . . . . . . . . . . . . 14 . . . . . . . . . Allies Hacked . | . . . . . . . . . . . . . . . . . . . . . . . . . . . . . . . . Hacks Repelled . | . . . . . . . . . . . . . . . . . . . . . . . . . . . . . . . . Allies | -11 -10 -10 -10 -9 -8 -7 -7 -7 -7 -6 -6 -6 -6 -6 -5 -5 -5 -5 -5 -4 -4 -4 -4 -4 -4 -3 -2 -2 -2 -1 -1 -------- Run | Yrd Mat Min Exi Min Mat Fac Low Low Zio Pro Fac Low Low Dat Pro Fac Upp Upp War Pro Fac Ext Cet Arc Hub Res Res Qua Sec Acc Com Total Allies 31 | . . . . 1 . 1 . . 3 . 1 . . . . . . . . . . 19 5 . . 1 . . . . . Largest Group 13 | . . . . 1 . 1 . . 3 3 1 . . . . . . . . . . 13 13 11 8 1 . . . . . Highest-Rated Group 898 | . . . . 31 . 26 . . 81 81 10 . . . . . . . . . . 679 898 838 587 45 . . . . . Highest-Rated Ally 159 | . . . . 31 . 26 . . 31 31 10 . . . . . . . . . . 159 159 159 96 45 . . . . . Total Orders 7 | . . . . . . . . . . . . 1 . . . . . . . . . . 3 3 . . . . . . . STAY 4 | . . . . . . . . . . . . . . . . . . . . . . . 2 2 . . . . . . . FOLLOW 2 | . . . . . . . . . . . . . . . . . . . . . . . 1 1 . . . . . . . RETURN 1 | . . . . . . . . . . . . 1 . . . . . . . . . . . . . . . . . . . Ally Attacks 256 | . . . . 3 . . . . . 11 . . . . . . . . . . . 80 81 30 51 . . . . . . Total Damage 8091 | . . . . 22 . . . . . 228 . . . . . . . . . . . 2474 2457 1072 1838 . . . . . . Kills 37 | . . . . 1 . . . . . 1 . . . . . . . . . . . 13 8 6 8 . . . . . . Allies Corrupted . | . . . . . . . . . . . . . . . . . . . . . . . . . . . . . . . . Allies Melted 3 | . . . . . . . . . . . . . . . . . . . . . . . . . 1 . 2 . . . . Intel | -11 -10 -10 -10 -9 -8 -7 -7 -7 -7 -6 -6 -6 -6 -6 -5 -5 -5 -5 -5 -4 -4 -4 -4 -4 -4 -3 -2 -2 -2 -1 -1 ------- Run | Yrd Mat Min Exi Min Mat Fac Low Low Zio Pro Fac Low Low Dat Pro Fac Upp Upp War Pro Fac Ext Cet Arc Hub Res Res Qua Sec Acc Com Robot Analysis Total 6 | . 1 . . . 2 . . . . . 1 . . . . . . . . . 1 1 . . . . . . . . . Derelict Logs Recovered 11 | . . 1 . . . . 1 1 2 1 . 1 . . 2 . 2 . . . . . . . . . . . . . . Drone Launches 1 | . . . . . . . . . . . . 1 . . . . . . . . . . . . . . . . . . . Drone Recoveries 1 | . . . . . . . . . . . . 1 . . . . . . . . . . . . . . . . . . . Exploration | -11 -10 -10 -10 -9 -8 -7 -7 -7 -7 -6 -6 -6 -6 -6 -5 -5 -5 -5 -5 -4 -4 -4 -4 -4 -4 -3 -2 -2 -2 -1 -1 ------------- Run | Yrd Mat Min Exi Min Mat Fac Low Low Zio Pro Fac Low Low Dat Pro Fac Upp Upp War Pro Fac Ext Cet Arc Hub Res Res Qua Sec Acc Com Turns Passed 16116 | 40 1225 374 1326 496 2461 960 81 65 473 148 729 546 44 21 57 209 614 159 650 117 406 862 364 1177 175 1103 617 157 162 116 182 Spaces Moved 24783 | 15 684 226 623 151 837 1991 270 239 1075 439 1951 922 188 91 212 789 1054 653 1493 351 1051 1151 438 1250 423 2607 1696 497 490 376 550 Core . | . . . . . . . . . . . . . . . . . . . . . . . . . . . . . . . . Treads 2155 | . 318 226 623 151 837 . . . . . . . . . . . . . . . . . . . . . . . . . . Legs 381 | 15 366 . . . . . . . . . . . . . . . . . . . . . . . . . . . . . . Wheels . | . . . . . . . . . . . . . . . . . . . . . . . . . . . . . . . . Hover . | . . . . . . . . . . . . . . . . . . . . . . . . . . . . . . . . Flight 22238 | . . . . . . 1991 270 239 1075 439 1951 922 188 91 212 789 1054 653 1493 351 1051 1151 438 1250 423 2607 1696 497 484 376 547 Fastest Speed 5 | 120 120 160 160 320 240 27 26 26 26 26 23 23 23 23 23 23 11 20 23 23 5 5 25 25 15 21 21 21 21 21 21 Average Speed 42 | 120 138 160 212 320 244 27 26 26 26 26 24 33 23 23 23 23 23 23 23 23 23 23 28 25 24 24 21 21 22 21 21 Slowest Speed 320 | 120 190 160 320 320 320 31 100 26 26 26 26 100 23 23 23 24 24 24 24 23 24 25 101 25 25 28 21 21 89 21 93 Overloaded Moves 118 | . . . . . . . . . . . . . . . . . 15 75 . . 14 11 . . 3 . . . . . . Propulsion Burnouts . | . . . . . . . . . . . . . . . . . . . . . . . . . . . . . . . . Robots Hopped 79 | . . . . . . 19 . . . 4 17 . . . . 4 . . . . 1 7 . . 2 4 8 1 7 2 3 Cave-ins Triggered 1 | . . . . . . . . . . . . . . . . . . . . . . 1 . . . . . . . . . Spacefolds 4 | . . . . . . . . . . . . . . . . . . . . . . . . . . . . . 3 . 1 Exploration Rate (%) 54 | 3 94 42 78 47 53 45 41 44 89 62 55 62 20 74 50 26 88 76 95 57 20 65 80 100 31 50 35 72 62 14 26 Regions Visited 31 Branch Regions 22 Pre-discovered Areas 7 | . . . 1 . . . . . 3 . . . . 1 1 . 1 . . . . . . . . . . . . . . Known Exits Taken 12 | . . . . . . 1 . . . . 1 1 . . 1 1 . . . . 1 1 . . 1 1 1 . 1 1 . Unknown Exits Taken 19 | 1 1 1 1 1 1 . 1 1 1 1 . . 1 1 . . 1 1 1 1 . . 1 1 . . . 1 . . . Scrap Searched 25 | . . . . 1 . . 2 3 3 2 . 4 . . 1 . 2 3 . 4 . . . . . . . . . . . Spaces Dug 313 | . . . . . 1 56 1 . . 5 37 7 . . . 6 7 1 2 3 21 17 . . 17 41 74 9 1 1 6 Terrain Destroyed 611 | . . . . . 15 56 1 . . 5 37 93 . . . 6 176 1 2 14 21 17 7 6 17 41 74 14 1 1 6 Melee 237 | . . . . . . 56 1 . . 5 37 7 . . . 6 7 1 2 3 21 17 . . 17 20 28 1 1 1 6 Projectile 31 | . . . . . 5 . . . . . . . . . . . . . . . . . 7 6 . . . 13 . . . AOE 343 | . . . . . 10 . . . . . . 86 . . . . 169 . . 11 . . . . . 21 46 . . . . Terrain Rammed . | . . . . . . . . . . . . . . . . . . . . . . . . . . . . . . . . Walls Destroyed . | . . . . . . . . . . . . . . . . . . . . . . . . . . . . . . . . Machines Disabled . | . . . . . . . . . . . . . . . . . . . . . . . . . . . . . . . . Actions | -11 -10 -10 -10 -9 -8 -7 -7 -7 -7 -6 -6 -6 -6 -6 -5 -5 -5 -5 -5 -4 -4 -4 -4 -4 -4 -3 -2 -2 -2 -1 -1 --------- Run | Yrd Mat Min Exi Min Mat Fac Low Low Zio Pro Fac Low Low Dat Pro Fac Upp Upp War Pro Fac Ext Cet Arc Hub Res Res Qua Sec Acc Com Total 29136 | 23 846 231 629 159 1040 2273 276 240 1267 458 2123 1144 187 90 214 798 1381 655 1792 379 1177 1673 650 2071 459 2975 1894 542 512 396 582 Wait 2975 | . 37 . . . 34 155 1 . 184 16 97 178 . . . . 282 . 265 12 84 263 170 778 13 258 134 14 . . . Move 24601 | 14 683 225 622 150 836 1955 269 238 1074 430 1918 921 187 90 211 781 1053 652 1492 350 1048 1135 437 1249 418 2599 1682 494 474 371 543 Hop 67 | . . . . . . 16 . . . 4 15 . . . . 3 . . . . 1 7 . . 2 3 5 1 6 2 2 Pick Up 122 | . 20 1 1 4 21 6 . 1 1 . 8 3 . . . 3 4 . 6 3 2 3 3 1 . 9 13 4 3 . 2 Fast Attach 132 | 1 4 . 2 . 6 13 1 . 2 2 7 5 . . . 1 1 1 7 . 9 9 5 4 1 22 2 4 7 7 9 Attach 54 | . 2 . . . 8 3 1 . . . 3 7 . . . 1 3 1 . 3 . 4 2 . . 3 3 4 5 . 1 Detach 25 | . 1 . . . . 1 . . 1 . . 5 . . . . . . . . 1 4 2 . . . 2 4 4 . . Swap 62 | . 10 . 1 2 6 7 1 1 . . 3 2 . . . . . . 3 . 1 4 2 3 3 4 3 1 1 1 3 Drop 222 | . 15 1 3 . 15 36 2 . 4 1 12 7 . . . 3 5 . 17 4 9 11 8 5 3 22 11 9 3 8 8 Fire 266 | 8 67 4 . 3 104 . . . . . . 9 . . . . 26 . . 3 . . 20 17 . 1 1 2 . . 1 Melee 385 | . . . . . . 81 1 . 1 5 42 7 . . 3 6 7 1 2 4 22 43 1 14 19 54 38 5 9 7 13 Ram . | . . . . . . . . . . . . . . . . . . . . . . . . . . . . . . . . Kick 2 | . 2 . . . . . . . . . . . . . . . . . . . . . . . . . . . . . . Crush 15 | . 5 . . . 10 . . . . . . . . . . . . . . . . . . . . . . . . . . Escape Stasis 145 | . . . . . . . . . . . 18 . . . . . . . . . . 127 . . . . . . . . . Rewire 63 | . . . . . . . . . . . . . . . . . . . . . . 63 . . . . . . . . . Trap . | . . . . . . . . . . . . . . . . . . . . . . . . . . . . . . . . Miscellaneous . | . . . . . . . . . . . . . . . . . . . . . . . . . . . . . . . . Route ------- -11/Scrapyard -10/Materials (discovered 4 exits: [*Mat x3] / [*Min]) -10/Mines (discovered 3 exits: [*Mat x2] / *Exi) -10/Exiles -9/Mines -8/Materials -7/Factory (discovered 3 exits: *Fac / *Low x2) -7/Lower Caves -7/Lower Caves -7/Zion -6/Proximity Caves -6/Factory (discovered 5 exits: *Fac x3 / *Low x2) -6/Lower Caves -6/Lower Caves -6/Data Miner -5/Proximity Caves -5/Factory (discovered 4 exits: *Fac / *Upp x2 / DSF) -5/Upper Caves -5/Upper Caves (discovered 2 exits: *Fac / *War) -5/Warlord -4/Proximity Caves -4/Factory (discovered 4 exits: Upp x2 / *Ext x2) -4/Extension (discovered 2 exits: *Res / *Cet) -4/Cetus (discovered 2 exits: *Res / *Arc) -4/Archives (discovered 3 exits: *Res / *Hub x2) -4/Hub_04(d) (discovered 4 exits: *Res x4) -3/Research (discovered 6 exits: *Res x3 / Arm / Tes x2) -2/Research (discovered 5 exits: Acc x3 / *Qua x2) -2/Quarantine -2/Section 7 -1/Access -1/Command Tau Ceti IV Orbit History --------- Turn | Location | Event 1 | -11/Scrapyard | Discovered new exit (range 3) 41 | -11/Scrapyard | Entered Materials 307 | -10/Materials | Build established: Mutant 321 | -10/Materials | Discovered new exit (range 16) 445 | -10/Materials | Discovered new exit (range 4) 461 | -10/Materials | Central database locked down 700 | -10/Materials | Discovered new exit (range 14) 790 | -10/Materials | Repaired Lgt. Armor Plating 1054 | -10/Materials | Core integrity fell below 50% 1104 | -10/Materials | Discovered new exit (range 14) 1266 | -10/Materials | Entered Mines 1270 | -10/Mines | Learned Materials terminal intel 1274 | -10/Mines | Discovered new exit (range 8) 1304 | -10/Mines | Met a Derelict bent on vengeance 1541 | -10/Mines | Discovered new exit (range 9) 1615 | -10/Mines | Received a Rocket Launcher from a helpful Derelict 1634 | -10/Mines | Deemed a non-threat by the Exiles lab entrance 1634 | -10/Mines | Discovered new exit (range 5) 1640 | -10/Mines | Entered Exiles 1679 | -10/Exiles | Met 8R-AWN 1706 | -10/Exiles | Met EX-HEX 1762 | -10/Exiles | Met EX-BIN 1789 | -10/Exiles | Aligned with FarCom system 1791 | -10/Exiles | Given EX-Vault access code 1829 | -10/Exiles | Opened EX-Vault 1870 | -10/Exiles | Warned to stay clear of 0b10 Research branches 1916 | -10/Exiles | Met EX-DEC 1926 | -10/Exiles | Learned location of Zion (-7) 2010 | -10/Exiles | Visited The Gauntlet 2212 | -10/Exiles | Discovered new exit (range 15) 2455 | -10/Exiles | Found XL Autogun Array 2649 | -10/Exiles | Found Cloak of Protection 2966 | -10/Exiles | Left Exiles lab with XL Autogun Array 2966 | -10/Exiles | Entered Mines 2969 | -9/Mines | Received a Mining Laser from a helpful Derelict 3221 | -9/Mines | Found the Drone Emporium 3239 | -9/Mines | Found Prototype Device 3240 | -9/Mines | Identified Sensor Drone Bay 3418 | -9/Mines | Discovered new exit (range 15) 3462 | -9/Mines | Entered Materials 3462 | -8/Materials | Evolved 4 slots: Propulsion x1, Utility x3 3463 | -8/Materials | Loaded intel: 12 terminal locations 3991 | -8/Materials | Lost 4 parts (2n1u1w) 4707 | -8/Materials | Build established: Scavenger-Mutant 5422 | -8/Materials | Discovered new exit (range 3) 5875 | -8/Materials | Central database locked down 5923 | -8/Materials | Entered Factory 5923 | -7/Factory | Evolved 2 slots: Propulsion x2 6164 | -7/Factory | Identified exit to Lower Caves 6227 | -7/Factory | Discovered new exit (range 14) 6270 | -7/Factory | Build established: Hacker-Sprinter 6297 | -7/Factory | Fabricated Hacking Suite (x1) 6883 | -7/Factory | Entered Lower Caves 6926 | -7/Lower Caves | Learned Factory stockpile data 6928 | -7/Lower Caves | Encountered a Warlord checkpoint 6957 | -7/Lower Caves | Discovered new exit (range 2) 6964 | -7/Lower Caves | Entered another Lower Caves area 6971 | -7/Lower Caves | Learned 8 Factory zone layouts 7017 | -7/Lower Caves | Encountered a Warlord checkpoint 7017 | -7/Lower Caves | Discovered new exit (range 15) 7029 | -7/Lower Caves | Entered Zion 7056 | -7/Zion | System corruption cleaned by Quarantine Array 7065 | -7/Zion | Gained Derelict followers 7068 | -7/Zion | Discovered new exit (range 11) 7097 | -7/Zion | Learned Factory security intel 7117 | -7/Zion | Received a visual enhancement algorithm 7136 | -7/Zion | Found Prototype Launcher 7136 | -7/Zion | Identified Gui. Missile Launcher 7157 | -7/Zion | Learned location of Quarantine (-2) 7228 | -7/Zion | Learned location of 1 exit from Lower Caves 7239 | -7/Zion | Acquired unknown access codes intercepted by a Zionite 7246 | -7/Zion | Learned location of Armory (-3) 7259 | -7/Zion | Rebuked by Imprinter 7502 | -7/Zion | Entered Proximity Caves 7502 | -6/Proximity Caves | Accompanied by 3 allies 7521 | -6/Proximity Caves | Spotted B-75 Beast 7569 | -6/Proximity Caves | Attracted the attention of an 0b10 outpost 7619 | -6/Proximity Caves | Learned Factory terminal intel 7627 | -6/Proximity Caves | Spotter reported a threat 7644 | -6/Proximity Caves | Discovered new exit (range 9) 7650 | -6/Proximity Caves | Entered Factory 7650 | -6/Factory | Evolved 2 slots: Utility x2 7651 | -6/Factory | Identified exit to Factory 7651 | -6/Factory | Identified exit to Lower Caves 7654 | -6/Factory | Loaded intel: 26 terminal locations 7761 | -6/Factory | Discovered exit to Factory (range 9) 7903 | -6/Factory | Fabricated Adv. Hacking Suite (x1) 8084 | -6/Factory | Discovered exit to Factory (range 8) 8361 | -6/Factory | Fabricated Adv. Trap Extractor (x2) 8379 | -6/Factory | Entered Lower Caves 8380 | -6/Lower Caves | Identified exit to Lower Caves 8826 | -6/Lower Caves | Attracted the attention of an 0b10 checkpoint 8923 | -6/Lower Caves | Learned Factory machine intel 8925 | -6/Lower Caves | Entered another Lower Caves area 8925 | -6/Lower Caves | Discovered new exit (range 1) 8969 | -6/Lower Caves | Entered Data Miner 8969 | -6/Data Miner | Discovered new exit (range 6) 8974 | -6/Data Miner | Met Data Miner 8978 | -6/Data Miner | Learned location of Section 7 (-2) 8978 | -6/Data Miner | Acquired the access code to Warlord's prototype stash 8981 | -6/Data Miner | Received God Mode back door access code from Data Miner 8990 | -6/Data Miner | Entered Proximity Caves 9015 | -5/Proximity Caves | Spotted B-75 Beast 9024 | -5/Proximity Caves | Learned location of 1 exit from Factory 9027 | -5/Proximity Caves | Spotter reported a threat 9041 | -5/Proximity Caves | Discovered exit to Factory (range 12) 9047 | -5/Proximity Caves | Entered Factory 9047 | -5/Factory | Evolved 2 slots: Propulsion x1, Utility x1 9048 | -5/Factory | Identified exit to Upper Caves 9049 | -5/Factory | Loaded intel: 321 machine locations 9122 | -5/Factory | Discovered new exit (range 13) 9175 | -5/Factory | Spotted B-75 Beast 9220 | -5/Factory | Identified exit to DSF 9256 | -5/Factory | Entered Upper Caves 9714 | -5/Upper Caves | Ambushed by research squad 9766 | -5/Upper Caves | Learned 4 Factory zone layouts 9788 | -5/Upper Caves | Spotted B-75 Beast 9857 | -5/Upper Caves | Attracted the attention of an 0b10 checkpoint 9866 | -5/Upper Caves | Discovered new exit (range 13) 9870 | -5/Upper Caves | Entered another Upper Caves area 9876 | -5/Upper Caves | Discovered new exit (range 14) 9960 | -5/Upper Caves | Spotted B-75 Beast 9962 | -5/Upper Caves | Attracted the attention of an 0b10 outpost 10013 | -5/Upper Caves | Discovered new exit (range 8) 10029 | -5/Upper Caves | Entered Warlord 10038 | -5/Warlord | System corruption cleaned by Quarantine Array 10189 | -5/Warlord | Visited the Vortex Lab 10189 | -5/Warlord | Warlord's base attacked by MAIN.C 10190 | -5/Warlord | Found Prototype Piercing Weapon 10192 | -5/Warlord | Found Prototype Piercing Weapon 10224 | -5/Warlord | Met Warlord 10226 | -5/Warlord | Opened Warlord's prototype stash 10235 | -5/Warlord | Found Prototype Device 10235 | -5/Warlord | Identified System Purifier 10264 | -5/Warlord | Found Prototype Hackware 10264 | -5/Warlord | Identified Ghost Barrier 10298 | -5/Warlord | Found Prototype Launcher 10539 | -5/Warlord | Warlord forces counterattacked 10641 | -5/Warlord | Opened side exit 10643 | -5/Warlord | Spotted Striker 10645 | -5/Warlord | Spotted Executioner 10652 | -5/Warlord | Discovered new exit (range 11) 10679 | -5/Warlord | Entered Proximity Caves 10693 | -4/Proximity Caves | Lost 3 allies 10785 | -4/Proximity Caves | Discovered new exit (range 9) 10796 | -4/Proximity Caves | Entered Factory 10796 | -4/Factory | Evolved 2 slots: Propulsion x1, Utility x1 10797 | -4/Factory | Identified exit to Extension 10957 | -4/Factory | Identified exit to Upper Caves 11202 | -4/Factory | Entered Extension 11273 | -4/Extension | Rescued a captive Derelict 11278 | -4/Extension | Central database locked down 11603 | -4/Extension | Build established: Wizard-Sprinter 11607 | -4/Extension | Lost 3 allies 11627 | -4/Extension | Rescued A7 11772 | -4/Extension | Crushed by falling debris 11803 | -4/Extension | Lost 3 parts (1n2u) 11810 | -4/Extension | Identified exit to Cetus 11885 | -4/Extension | Rescued a captive Derelict 11993 | -4/Extension | Rescued a captive Derelict 11997 | -4/Extension | Discovered new exit (range 10) 12064 | -4/Extension | Entered Cetus 12064 | -4/Cetus | Accompanied by 13 allies (A7) 12069 | -4/Cetus | Acquired a Cetus Manufacturing Module code from A7 12082 | -4/Cetus | Spotted Cetus Guard 12082 | -4/Cetus | Spotted Cetus Guard 12082 | -4/Cetus | Spotted Cetus Guard 12087 | -4/Cetus | Spotted Cetus Guard 12098 | -4/Cetus | Allies destroyed Cetus Guard 12099 | -4/Cetus | Allies destroyed Cetus Guard 12104 | -4/Cetus | Destroyed Cetus Guard 12110 | -4/Cetus | Allies destroyed Cetus Guard 12134 | -4/Cetus | Lost 6 allies 12137 | -4/Cetus | Escorted A7 to Cetus Mainframe 12148 | -4/Cetus | Started Cetus Manufacturing Module 12173 | -4/Cetus | Manufactured an Enhanced Grunt 12198 | -4/Cetus | Manufactured an Enhanced Grunt 12223 | -4/Cetus | Manufactured an Enhanced Grunt 12248 | -4/Cetus | Manufactured an Enhanced Grunt 12273 | -4/Cetus | Manufactured an Enhanced Grunt 12286 | -4/Cetus | Discovered new exit (range 15) 12336 | -4/Cetus | Spotted Cetus Guard 12336 | -4/Cetus | Spotted Cetus Guard 12336 | -4/Cetus | Spotted Cetus Guard 12336 | -4/Cetus | Spotted Cetus Guard 12347 | -4/Cetus | Allies destroyed Cetus Guard 12350 | -4/Cetus | Allies destroyed Cetus Guard 12352 | -4/Cetus | Allies destroyed Cetus Guard 12357 | -4/Cetus | Destroyed Cetus Guard 12360 | -4/Cetus | Discovered new exit (range 16) 12362 | -4/Cetus | Met Revision 17 12428 | -4/Cetus | Entered Archives 12428 | -4/Archives | Accompanied by 11 allies (A7) 12433 | -4/Archives | Received a hacking code to weaken MAIN.C 12527 | -4/Archives | Discovered new exit (range 15) 12548 | -4/Archives | Discovered new exit (range 15) 12597 | -4/Archives | Discovered new exit (range 16) 12605 | -4/Archives | Unable to access archive contents 12649 | -4/Archives | Unable to access archive contents 12653 | -4/Archives | Unable to access archive contents 12654 | -4/Archives | Build established: Hacker-Sprinter 12729 | -4/Archives | Unable to access archive contents 12731 | -4/Archives | Unable to access archive contents 12743 | -4/Archives | Unable to access archive contents 12830 | -4/Archives | Unable to access archive contents 12830 | -4/Archives | Unable to access archive contents 12830 | -4/Archives | Unable to access archive contents 12830 | -4/Archives | Unable to access archive contents 12830 | -4/Archives | Unable to access archive contents 12830 | -4/Archives | Unable to access archive contents 12830 | -4/Archives | Unable to access archive contents 12830 | -4/Archives | Unable to access archive contents 12830 | -4/Archives | Unable to access archive contents 12830 | -4/Archives | Unable to access archive contents 12830 | -4/Archives | Unable to access archive contents 12830 | -4/Archives | Unable to access archive contents 12830 | -4/Archives | Unable to access archive contents 12830 | -4/Archives | Unable to access archive contents 12830 | -4/Archives | Unable to access archive contents 12830 | -4/Archives | Unable to access archive contents 13605 | -4/Archives | Entered Hub_04(d) 13605 | -4/Hub_04(d) | Accompanied by 8 allies 13632 | -4/Hub_04(d) | Identified exit to Research 13644 | -4/Hub_04(d) | Incoming investigation squad redirected 13716 | -4/Hub_04(d) | Lost 4 allies 13746 | -4/Hub_04(d) | Network Hub disabled 13780 | -4/Hub_04(d) | Entered Research 13780 | -3/Research | Evolved 2 slots: Power x1, Utility x1 13815 | -3/Research | Identified exit to Armory 13815 | -3/Research | Identified exit to Testing 13942 | -3/Research | Build established: Wizard-Sprinter 13980 | -3/Research | Revision forces began assault on 0b10 14021 | -3/Research | Met up with Revision 17++ 14082 | -3/Research | Identified exit to Research 14082 | -3/Research | Imp. Hacking Suite fried by hacking feedback 14317 | -3/Research | Fabricated Exp. Hacking Suite (x1) 14325 | -3/Research | Identified Vortex Catalyst Activator 14414 | -3/Research | Fabricated Quantum Shading Machine? 14480 | -3/Research | Research terminal network offline 14822 | -3/Research | Repaired Centrium Medium Armor Plating 14883 | -3/Research | Entered another Research area 14883 | -2/Research | Warlord forces began assault on 0b10 14883 | -2/Research | Evolved 2 slots: Utility x2 14970 | -2/Research | Identified exit to Quarantine 14970 | -2/Research | Identified exit to Access 14993 | -2/Research | Research machine network offline 15059 | -2/Research | Met up with Warlord 15138 | -2/Research | Found Prototype Device 15193 | -2/Research | Found Exp. Shield Generator 15198 | -2/Research | Spotted Striker 15199 | -2/Research | Spotted Striker 15359 | -2/Research | Identified Beam Splitter 15359 | -2/Research | Met DD-05H 15375 | -2/Research | Borebot progress halted 15380 | -2/Research | Borebot progress halted 15428 | -2/Research | Warlord destroyed during the assault 15500 | -2/Research | Entered Quarantine 15501 | -2/Quarantine | Maximum security lockdown engaged 15511 | -2/Quarantine | Found Alien Energy Cannon 15527 | -2/Quarantine | Identified Core Cannon 15546 | -2/Quarantine | Met incapacitated Sigix Warrior 15546 | -2/Quarantine | Lockdown squad dispatched 15563 | -2/Quarantine | Found Sigix Containment Pod 15577 | -2/Quarantine | Cryocooling Duct disabled 15579 | -2/Quarantine | Cryocooling Duct disabled 15589 | -2/Quarantine | Discovered exit to Access (range 9) 15592 | -2/Quarantine | Ambient heat levels rising (+20) 15594 | -2/Quarantine | Ambient heat levels rising (+20) 15597 | -2/Quarantine | Found Alien Slashing Weapon 15620 | -2/Quarantine | Found Alien Artifact 15620 | -2/Quarantine | Identified Core Reset Matrix 15620 | -2/Quarantine | Identified Sigix Broadsword 15620 | -2/Quarantine | Used Core Reset Matrix 15624 | -2/Quarantine | Sensed 12 artifacts in vicinity 15642 | -2/Quarantine | Spotted Fortress 15656 | -2/Quarantine | Discovered new exit (range 5) 15657 | -2/Quarantine | Entered Section 7 15658 | -2/Section 7 | Maximum security lockdown engaged 15658 | -2/Section 7 | Sensed 25 artifacts in vicinity 15667 | -2/Section 7 | Found Microwarp Drive 15672 | -2/Section 7 | Spotted S7 Guard 15677 | -2/Section 7 | Found Integrated Thermoelectric Network 15677 | -2/Section 7 | Installed Integrated Thermoelectric Network, gained heat-energy exchange potential 15696 | -2/Section 7 | Found Spacefold Activator 15707 | -2/Section 7 | Spotted Alpha 7 15707 | -2/Section 7 | Spotted Alpha 7 15711 | -2/Section 7 | Spotted B-99 Colossus 15722 | -2/Section 7 | Found Integrated Reactor 15722 | -2/Section 7 | Installed Integrated Reactor, increased core energy generation (+10) 15724 | -2/Section 7 | Found Integrated Reactor 15724 | -2/Section 7 | Installed Integrated Reactor, increased core energy generation (+10) 15726 | -2/Section 7 | Found Integrated Reactor 15726 | -2/Section 7 | Installed Integrated Reactor, increased core energy generation (+10) 15741 | -2/Section 7 | Found LRC Insulator 15741 | -2/Section 7 | Installed LRC Insulator, gained EM resistance (25) 15744 | -2/Section 7 | Found LRC Armor 15744 | -2/Section 7 | Installed LRC Armor, increased core integrity (+250) 15758 | -2/Section 7 | Found Integrated Dissipator 15758 | -2/Section 7 | Installed Integrated Dissipator, increased core heat dissipation (+20) 15777 | -2/Section 7 | Spotted Executioner 15777 | -2/Section 7 | Spotted Executioner 15780 | -2/Section 7 | Spotted Striker 15780 | -2/Section 7 | Spotted Striker 15795 | -2/Section 7 | Found Hpw. Transdimensional Reconstructor 15800 | -2/Section 7 | Spotted Executioner 15800 | -2/Section 7 | Spotted Executioner 15813 | -2/Section 7 | Spotted S7 Guard 15815 | -2/Section 7 | Discovered exit to Access (range 3) 15819 | -2/Section 7 | Entered Access 15819 | -1/Access | Evolved 2 slots: Weapon x2 15867 | -1/Access | Found Unknown Device 15867 | -1/Access | Identified Quantum Capacitor 15883 | -1/Access | Identified exit to Command 15904 | -1/Access | Incoming investigation squad redirected 15905 | -1/Access | Spotted B-99 Colossus 15935 | -1/Access | Entered Command 16060 | -1/Command | Spotted Striker 16064 | -1/Command | Spotted B-99 Colossus 16106 | -1/Command | Discovered new exit (range 3) 16110 | -1/Command | Spotted Executioner 16110 | -1/Command | Spotted B-99 Colossus 16110 | -1/Command | Spotted Alpha 7 16110 | -1/Command | Spotted Executioner 16110 | -1/Command | Spotted Striker 16110 | -1/Command | Spotted Alpha 7 16117 | *** | Destroyed 0b10! Last Messages --------------- 16110_ Penetrated by Slug. 16112_ Slug penetrates Access Shell. 16112_ Penetrated by Slug. 16112_ Adv. Heat Sink destroyed. 16113_ Identified Diametric Drive. 16113_ Knocked back. 16114_ Penetrated by Slug. 16114_ Slug penetrates Access Shell. 16114_ Slug penetrates Wall. 16114_ Slug penetrates Access Shell. 16114_ Slug penetrates Wall. 16115_ Dropped Sigix Broadsword. 16115_ Penetrated by Slug. 16115_ Slug penetrates Wall. 16115_ Penetrated by Slug. 16117_ Electron Diverter destroyed. 16117_ Penetrated by Slug. 16117_ Slug penetrates Wall. 16117_ Penetrated by Slug. 16117_ Slug penetrates Wall. Map ----- +----------------------------------------------------+ | ????????# #??????????????# """ """" # | | ????????# #????????????### """" """" # | | ????????# #????????????# # | | ????????# #????????????# ^ ^ # | | ????????# #???????????## ^ " | | ????????# #??????###### # | | ????????# #??????+ ]# | | ????????# ???????###### # | | ????????# ????????#""## " | | ????????# ##+######T"## |]! # | | ????????# h ] |]! # | | ????????# g ]]! + | | ????????# g hg########"######### ##### # | | ????????# ]]g #??# #???# #???# ##### | | ????????# ]]! ##?# [ #???# #???# #???? | | ????????# ]! "#?# ! #???# #???# ##### | | ???????## ##?# #???# #???# | | ???????# #??####"######???#+##### | | ???????# #?????###????????# # ? | | ???????# #?##############?# # | | ???????# #?# #?# # "" | | ???????### " #?# #?# # """" | | ?????????# # #?# #?# # """" | | ?????????####BB #?# % ""^ #?# +o "" | | ????????????#BB E#?# % %"? #?# # | | ??????????### #?# /@" "???#?# # | | ??????????# E#?# " "" "?????# # | | ??????????# #?# ??" "?????# # ######+# | | ??????????# #?# ??"" ????# # ????# | | ??????????# #?#???? ???# # ????# | | ??????????#### K #?????? BB??####### ????# | | ?????????????# #????? BB#???????# #???# | | ?????????????# #????? E####???????# #???# | | ?????????????# =#???? ??????????# #???# | | ?????????????# #????# E##?????????# #???# | | ?????????????# #???? ??????????# #???# | | ?????????????# #????# ^^ K#??????????# #???#### | | ?????????????# #???? ??????????# #??????? | | ?????????????# #????# 7#?????????## ##?????? | | ?????????????# #????7 ^ ?????????# ! ####### | | ?????????????# #????# ^ #?????????+ | | ?????????????# #????# #?????????# !##### | | ?????????????# #?????#++++#??????????#####???# | | ?????????????# ####### #??????????????????# | | ?????????????# #??????????????????# | | ?????????????# #?????????????###### | | ?????????????# +?????????+ | | ?????????????# ==! #????????????######### | | ?????????????# ==! #????????????????????? | | ?????????##### ==! #????????????????????? | +----------------------------------------------------+ Best States ------------- Heat Dissipation 91 Energy Generation 87 Energy Capacity 440 Matter Stores 300 Matter Capacity 300 Sight Range 16 Terrain Scan Density 10 ECM Strength 1 Jamming Range 16 Cloak Strength 5 Power Amplification 30 Additional Mass Support 20 Armor Coverage 450 Resistance: KI 25 Resistance: EM 25 Power Shielding 66 Evasion (%) 66 Recoil Reduction 3 Offensive Hacking 54 Defensive Hacking 32 Authchip Count 2 Trap Extractor Capacity 8 Item Schematics ----------------- None Robot Schematics ------------------ None Fabricated ------------ Hacking Suite | x1 | -7/Factory Adv. Hacking Suite | x1 | -6/Factory | Authchip Adv. Trap Extractor | x2 | -6/Factory Exp. Hacking Suite | x1 | -3/Research Quantum Shading Machine | x1 | -3/Research Alien Tech Used ----------------- Core Cannon Core Reset Matrix Sigix Broadsword Integrated Thermoelectric Network Integrated Reactor Spacefold Activator LRC Insulator LRC Armor Integrated Dissipator Achievements -------------- Speed Demon Supersonic Challenges ------------ None Game ------ Seed ShrapnelGyrokineticCarapace Manual? 0 Play Time 05:31:23 Cumulative 277.8 hours Start 2024.10.17 @ 16:35:40 End 2024.10.18 @ 22:08:08 Sessions 7 Manual Loads 0 Difficulty Rogue Special Mode None Game No. 157 Rogue 157 Adventurer 0 Explorer 0 Win Type 3 Total 15 Types 3/2/6/2/1/0/1/0/0 Lore% 80 Gallery% 82 Achievement% 72 Wizard Run 0 Options --------- Layout 0 ASCII 0 Keyboard 0 Movement Arrows Keybinds 0 Fullscreen 2 Font 18/SmallcapsGlow Map View 76x50 Zoom Use 0% Tactical HUD 1 Map Filters NONE Filters NONE Steam 1 RUN: 42d0f93d-4cfa-4a3a-b50d-6f169125e635